bitfinex/quotes_ETHUSD_20240602
["timestamp","ask_amount","ask_price","bid_price","bid_amount"]
[1717346151860,2.63531,3794.7,3793.8,2.9135]
[1717346151861,2.66458907,3794.7,3793.8,2.9135]
[1717346153955,2.66458907,3794.7,3794.0,0.555]
[1717346162487,2.63545,3794.5,3793.7,2.63594]
[1717346162803,2.3462,3794.4,3793.7,2.63594]
[1717346163013,2.3745319,3794.4,3793.7,2.63594]
[1717346163367,2.3745319,3794.4,3793.7,3.19094]
[1717346166004,2.3745319,3794.4,3793.7,2.63594]
[1717346167257,3.01113798,3794.4,3793.7,2.63594]
[1717346168580,3.01113798,3794.4,3793.3,5.06349]
[1717346168581,2.6356,3794.2,3793.3,5.06349]
[1717346168788,2.6356,3794.2,3793.4,0.555]
[1717346168789,2.3718,3794.1,3793.4,0.555]
[1717346169089,2.40003193,3794.1,3793.4,0.555]
[1717346169791,2.63577,3794.0,3793.3,2.63619]
[1717346169986,2.66382597,3794.0,3793.4,0.555]
[1717346172495,2.66382597,3794.0,3793.3,2.63619]
[1717346172659,2.66382597,3794.0,3793.3,3.19119]
[1717346173369,2.66382597,3794.0,3793.3,2.63619]
[1717346173568,2.66382597,3794.0,3793.3,3.19119]
[1717346186517,2.66382597,3794.0,3793.5,0.555]
[1717346187302,2.66382597,3794.0,3793.3,3.19119]
[1717346189310,2.66382597,3794.0,3793.7,0.555]
[1717346189522,0.02805597,3794.0,3793.9,0.555]
[1717346189819,2.63553,3794.3,3793.9,0.555]
[1717346189978,0.02769041,3794.0,3793.9,0.555]
[1717346190180,2.63553,3794.3,3793.9,0.555]
[1717346190390,0.02769041,3794.0,3793.9,0.555]
[1717346190591,2.63553,3794.3,3793.9,0.555]
[1717346190817,0.02769041,3794.0,3793.9,0.555]
[1717346191001,2.63553,3794.3,3793.9,0.555]
[1717346191197,0.02769041,3794.0,3793.9,0.555]
[1717346191403,2.63553,3794.3,3793.9,0.555]
[1717346191600,0.02769041,3794.0,3793.9,0.555]
[1717346192107,2.63553,3794.3,3793.9,0.555]
[1717346192308,0.02785838,3794.0,3793.9,0.555]
[1717346192509,2.63553,3794.3,3793.9,0.555]
[1717346192712,0.02785838,3794.0,3793.9,0.555]
[1717346192877,2.63553,3794.3,3793.9,0.555]
[1717346193083,0.02785838,3794.0,3793.9,0.555]
[1717346193415,2.63553,3794.3,3793.9,0.555]
[1717346193620,0.02785838,3794.0,3793.9,0.555]
[1717346194123,2.3387289,3794.3,3793.9,0.555]
[1717346194333,0.02785838,3794.0,3793.9,0.555]
[1717346194517,2.3387289,3794.3,3793.9,0.555]
[1717346194518,2.3387289,3794.3,3793.9,0.874101]
[1717346194688,0.02785838,3794.0,3793.9,0.874101]
[1717346194885,2.3387289,3794.3,3793.9,0.874101]
[1717346195205,0.02785838,3794.0,3793.9,0.874101]
[1717346195411,2.3387289,3794.3,3793.9,0.874101]
[1717346195709,3.0,3794.6,3793.9,0.874101]
[1717346195907,2.459,3795.2,3794.5,0.555]
[1717346196094,2.459,3795.2,3794.7,0.555]
[1717346197508,0.555,3795.8,3794.7,0.555]
[1717346197707,2.459,3795.5,3794.9,0.555]
[1717346198022,2.459,3795.5,3794.7,3.0119]
[1717346198221,2.459,3795.5,3794.9,0.555]
[1717346199390,3.0,3795.7,3794.9,0.555]
[1717346199724,5.459,3795.7,3794.9,0.555]
[1717346199925,7.050855,3795.7,3794.9,0.555]
[1717346200528,2.63463,3795.6,3794.9,0.555]
[1717346200720,2.459,3795.4,3794.5,2.63537]
[1717346201023,2.459,3795.4,3794.6,0.555]
[1717346201222,0.02807028,3795.3,3794.6,0.555]
[1717346202222,0.02807028,3795.3,3794.6,0.5009888]
[1717346204124,0.02807028,3795.3,3794.5,2.63537]
[1717346204313,0.02807028,3795.3,3794.7,0.555]
[1717346210941,0.02807028,3795.3,3794.9,0.555]
[1717346211121,4.89653,3795.6,3794.9,0.555]
[1717346211322,0.02822218,3795.2,3794.9,0.555]
[1717346211522,4.89653,3795.6,3794.9,0.555]
[1717346211841,0.02822218,3795.1,3794.9,0.555]
[1717346212045,4.89653,3795.6,3794.9,0.555]
[1717346212507,0.02822218,3795.5,3794.9,0.555]
[1717346213219,0.02822218,3795.5,3794.8,2.4904]
[1717346213942,2.63479,3795.4,3794.8,2.4904]
[1717346214156,0.49249122,3795.3,3794.7,0.555]
[1717346214334,2.6349,3795.2,3794.7,0.555]
[1717346214508,2.6349,3795.2,3794.5,3.19037]
[1717346214707,0.02822218,3795.1,3794.5,3.19037]
[1717346216042,0.02822218,3795.1,3794.5,0.555]
[1717346217811,0.02822218,3795.1,3794.4,2.4904]
[1717346218035,0.02822218,3795.1,3794.6,0.555]
[1717346218314,0.02822218,3795.1,3794.4,2.4904]
[1717346218541,0.02822218,3795.1,3794.5,0.555]
[1717346219148,4.92635,3795.0,3794.1,4.9128]
[1717346219346,4.95508398,3795.0,3794.3,0.555]
[1717346219570,4.95508398,3795.0,3794.4,0.555]
[1717346227119,2.3204,3794.7,3793.8,2.63587]
[1717346227323,2.66403202,3794.6,3794.0,0.555]
[1717346229046,2.66403202,3794.6,3794.2,0.555]
[1717346233622,2.66403202,3794.6,3793.8,2.63587]
[1717346234039,2.66403202,3794.6,3794.0,0.555]
[1717346235333,2.2972,3794.5,3794.0,0.555]
[1717346235534,2.63548,3794.4,3794.0,0.555]
[1717346236168,0.02845016,3794.3,3794.0,0.555]
[1717346236780,0.02845016,3794.3,3793.7,2.4859]
[1717346236949,0.02845016,3794.3,3793.9,0.555]
[1717346237571,0.02845016,3794.3,3793.7,2.4859]
[1717346237869,0.02845016,3794.3,3793.9,0.555]
[1717346240073,0.02845016,3794.3,3794.0,0.555]
[1717346246665,2.6356,3794.2,3793.4,2.3688]
[1717346246869,2.6356,3794.2,3793.7,0.555]
[1717346247261,0.0284222,3794.1,3793.7,0.555]
[1717346248358,0.0284222,3794.1,3793.4,2.3688]
[1717346248666,0.0284222,3794.1,3793.7,0.555]
[1717346250394,2.2877222,3794.1,3793.2,5.06839]
[1717346250691,2.2593,3794.1,3793.7,0.555]
[1717346251068,0.02833023,3794.0,3793.7,0.555]
[1717346251988,0.02833023,3794.0,3793.6,0.555]
[1717346253600,0.02833023,3794.0,3793.8,0.555]
[1717346254497,0.02823826,3793.9,3793.8,0.555]
[1717346254735,2.6356,3794.2,3793.8,0.555]
[1717346254862,0.02823826,3794.1,3793.8,0.555]
[1717346255268,2.6356,3794.2,3794.0,0.555]
[1717346255512,0.02829426,3794.1,3794.0,0.555]
[1717346257572,0.02829426,3794.1,3793.8,2.4321]
[1717346257774,2.6354,3794.5,3794.0,0.555]
[1717346257974,0.02837023,3794.4,3794.0,0.555]
[1717346268829,0.02837023,3794.4,3794.2,0.555]
[1717346269011,0.02837023,3794.4,3793.9,2.63578]
[1717346269333,0.02847416,3794.3,3794.0,0.555]
[1717346269645,2.63519,3794.8,3794.0,0.555]
[1717346269798,0.02847416,3794.2,3794.0,0.555]
[1717346270003,3.192339,3794.8,3794.0,0.555]
[1717346270004,2.63519,3794.8,3794.0,0.555]
[1717346270200,0.02847416,3794.1,3794.0,0.555]
[1717346270426,2.63519,3794.8,3794.0,0.555]
[1717346270927,0.02847416,3794.7,3794.0,0.555]
[1717346271131,0.02847416,3794.7,3793.9,2.63578]
[1717346271299,0.02847416,3794.7,3794.0,0.555]
[1717346273697,2.63532,3794.6,3794.0,0.555]
[1717346274197,0.02847416,3794.5,3794.0,0.555]
[1717346280335,0.02847416,3794.5,3793.9,2.63578]
[1717346280637,0.02847416,3794.5,3793.9,3.19078]
[1717346285568,2.63548,3794.4,3793.8,2.4321]
[1717346285778,5.01678,3794.4,3793.8,0.555]
[1717346285925,0.02844616,3794.3,3793.8,0.555]
[1717346286956,2.63561,3794.2,3793.6,2.484]
[1717346287289,2.3813,3794.0,3792.8,2.484]
[1717346287635,0.58344616,3794.1,3792.9,0.555]
[1717346287636,2.4689,3793.8,3792.9,0.555]
[1717346288037,0.02801428,3793.7,3792.9,0.555]
[1717346288220,0.02801428,3793.7,3792.8,2.484]
[1717346288552,2.63611,3793.5,3792.9,0.555]
[1717346288958,0.02799828,3793.4,3792.9,0.555]
[1717346289262,2.49689828,3793.4,3792.9,0.555]
[1717346289471,2.49689828,3793.4,3792.6,5.08558]
[1717346289788,2.49689828,3793.4,3792.9,0.555]
[1717346292271,2.49689828,3793.4,3792.6,5.894138]
[1717346292571,2.49689828,3793.4,3792.9,0.555]
[1717346292747,2.49689828,3793.4,3792.6,5.894138]
[1717346293268,2.49689828,3793.4,3792.9,0.555]
[1717346298377,0.02799828,3793.4,3792.9,1.1999138]
[1717346298591,0.02799828,3793.4,3793.2,0.555]
[1717346298779,0.02750238,3793.3,3793.2,0.555]
[1717346299489,2.63611,3793.5,3793.2,0.555]
[1717346299663,0.02748238,3793.3,3793.2,0.555]
[1717346299850,2.63611,3793.5,3793.2,0.555]
[1717346300048,0.02748238,3793.3,3793.2,0.555]
[1717346300287,2.63611,3793.5,3793.2,0.555]
[1717346300899,0.02748238,3793.4,3793.2,0.555]
[1717346301893,5.02677,3793.9,3793.2,0.555]
[1717346302059,0.02757038,3793.3,3793.2,0.555]
[1717346302262,5.02677,3793.9,3793.2,0.555]
[1717346302461,0.02757038,3793.3,3793.2,0.555]
[1717346302687,5.02677,3793.9,3793.2,0.555]
[1717346302870,0.02757038,3793.3,3793.2,0.555]
[1717346303071,5.02677,3793.9,3793.2,0.555]
[1717346303271,0.02757038,3793.3,3793.2,0.555]
[1717346303583,5.02677,3793.9,3793.2,0.555]
[1717346304094,0.02757038,3793.8,3793.2,0.555]
[1717346304395,2.63596,3793.7,3793.0,0.555]
[1717346304968,0.02757038,3793.6,3793.0,0.555]
[1717346305196,2.3909,3793.5,3792.9,2.6365]
[1717346305497,2.3909,3793.5,3792.9,3.1915]
[1717346305696,0.02680806,3793.4,3792.9,3.1915]
[1717346309506,2.66299806,3793.4,3792.9,0.555]
[1717346310386,2.66299806,3793.4,3793.1,0.555]
[1717346313709,0.02680806,3793.4,3793.1,0.555]
[1717346314689,2.63595,3793.7,3793.1,0.555]
[1717346315007,0.026708,3793.3,3793.1,0.555]
[1717346315188,2.63595,3793.7,3793.1,0.555]
[1717346315678,0.02666397,3793.6,3793.1,0.555]
[1717346319283,0.02666397,3793.6,3793.1,0.874148]
[1717346321923,0.02666397,3793.6,3793.1,3.320348]
[1717346325813,0.02666397,3793.6,3793.3,0.555]
[1717346327117,0.02666397,3793.6,3793.5,0.555]
[1717346327314,5.10773,3794.1,3793.5,0.555]
[1717346327535,0.02677604,3793.6,3793.5,0.555]
[1717346327696,5.10773,3794.1,3793.5,0.555]
[1717346327896,0.02677604,3793.6,3793.4,2.63614]
[1717346328120,2.63547,3794.4,3793.6,2.63599]
[1717346328338,2.63547,3794.4,3793.9,0.555]
[1717346328544,2.63547,3794.4,3793.9,2.9735]
[1717346330440,2.63525,3794.7,3793.9,2.9735]
[1717346335948,5.8826,3795.0,3793.9,2.9735]
[1717346335949,2.63539,3794.5,3793.9,2.9735]
[1717346336543,0.0269121,3794.4,3793.9,2.9735]
[1717346340146,0.0269121,3794.4,3793.9,0.555]
[1717346340444,2.63553,3794.3,3793.7,0.555]
[1717346341060,0.02698814,3794.2,3793.7,0.555]
[1717346342253,2.63569,3794.1,3793.7,0.555]
[1717346342411,2.3276,3794.0,3793.3,2.4185]
[1717346342607,2.66281814,3793.9,3793.3,2.9735]
[1717346342837,2.66281814,3793.9,3793.3,0.555]
[1717346344431,2.66281814,3793.9,3793.5,0.555]
[1717346346031,2.66281814,3793.9,3793.1,2.63635]
[1717346346232,2.63583,3793.9,3793.4,0.555]
[1717346346445,0.02698814,3793.8,3793.4,0.555]
[1717346352018,0.02558905,3793.8,3793.2,0.505485]
[1717346352224,0.02558905,3793.8,3793.4,0.555]
[1717346353966,0.02558905,3793.8,3793.6,0.555]
[1717346354329,2.6356,3794.2,3793.6,1.113949]
[1717346354528,0.02678143,3793.7,3793.6,1.113949]
[1717346354834,2.6356,3794.2,3793.6,1.113949]
[1717346355038,0.02678143,3794.1,3793.6,0.555]
[1717346357264,0.02678143,3794.1,3793.5,2.3983]
[1717346364083,0.02678143,3794.1,3793.5,2.63603]
[1717346364252,0.02678143,3794.1,3793.4,0.555]
[1717346379866,0.02678143,3794.1,3793.4,3.1911]
[1717346380198,0.02678143,3794.1,3793.6,0.555]
[1717346380379,0.02678143,3794.1,3793.7,2.4586]
[1717346380574,2.4287,3794.4,3793.8,0.555]
[1717346380790,0.02669477,3794.0,3793.8,0.555]
[1717346380994,2.4287,3794.4,3793.8,0.555]
[1717346381189,0.02669477,3793.9,3793.8,0.555]
[1717346381393,2.4287,3794.4,3793.8,1.17585]
[1717346381912,0.02678681,3794.3,3793.8,1.17585]
[1717346385098,0.02678681,3794.3,3793.8,0.62085]
[1717346388307,0.02678681,3794.3,3793.7,3.0136]
[1717346389122,0.02678681,3794.3,3793.7,0.555]
[1717346396277,2.63562,3794.2,3793.3,2.63621]
[1717346396575,0.555,3794.6,3793.3,2.63621]
[1717346396576,2.63576,3794.0,3793.4,0.555]
[1717346396778,3.136676,3794.0,3793.4,0.555]
[1717346396928,2.63576,3794.0,3793.4,0.555]
[1717346397130,0.02673881,3793.9,3793.4,0.555]
[1717346404340,0.02673881,3793.9,3793.7,0.555]
[1717346404782,2.3734,3794.1,3793.7,0.555]
[1717346404962,0.02660274,3793.8,3793.7,0.555]
[1717346405596,2.3734,3794.1,3793.7,0.555]
[1717346405745,0.02660274,3793.8,3793.7,0.555]
[1717346405943,2.3734,3794.1,3793.7,0.555]
[1717346406145,0.02660274,3793.8,3793.7,0.555]
[1717346406781,2.63554,3794.3,3793.7,2.9815]
[1717346406936,2.63554,3794.3,3793.8,0.561752]
[1717346407573,2.63532,3794.6,3793.8,0.561752]
[1717346408383,2.63532,3794.6,3793.9,0.555]
[1717346408545,2.63532,3794.6,3794.1,0.555]
[1717346410842,0.0267588,3794.5,3794.1,0.555]
[1717346411044,0.0267588,3794.5,3794.4,0.555]
[1717346411378,2.3911,3795.1,3794.4,0.555]
[1717346411583,0.02679884,3794.5,3794.4,0.555]
[1717346411881,2.3911,3795.1,3794.4,0.555]
[1717346412052,0.02693084,3794.5,3794.4,0.555]
[1717346412252,2.3911,3795.1,3794.4,0.555]
[1717346412584,2.8937,3795.1,3794.4,0.555]
[1717346412791,0.02722292,3795.0,3794.4,0.555]
[1717346418287,2.66233292,3795.0,3794.2,3.19058]
[1717346419661,2.66233292,3795.0,3794.4,0.555]
[1717346423089,2.66233292,3795.0,3794.2,3.19058]
[1717346424250,2.66233292,3795.0,3794.4,2.8899]
[1717346426792,2.66233292,3795.0,3794.4,2.3349]
[1717346429665,2.66233292,3795.0,3794.4,2.8899]
[1717346437298,2.66233292,3795.0,3794.4,2.3349]
[1717346445804,2.3139,3794.9,3794.2,2.63558]
[1717346445967,2.34123492,3794.9,3794.2,2.63558]
[1717346456305,2.63518,3794.8,3794.2,2.63558]
[1717346456709,0.02731892,3794.7,3794.2,2.63558]
[1717346460843,2.63551,3794.4,3793.6,2.63599]
[1717346461150,2.63551,3794.4,3792.7,2.63664]
[1717346461151,2.4731,3794.1,3793.3,3.19121]
[1717346461302,2.4731,3794.1,3793.3,3.738581]
[1717346461501,0.02740692,3794.0,3793.3,3.738581]
[1717346461928,0.02740692,3794.0,3793.3,3.183581]
[1717346462128,0.02740692,3794.0,3793.3,3.738581]
[1717346462531,2.63575,3794.0,3793.3,2.63621]
[1717346462847,0.02740692,3793.9,3793.3,2.63621]
[1717346463695,0.02740692,3793.9,3793.3,3.19121]
[1717346464107,0.02740692,3793.9,3793.3,2.63621]
[1717346464403,0.02740692,3793.9,3793.3,0.555]
[1717346464623,2.63589,3793.8,3793.3,0.555]
[1717346464823,2.4731,3793.7,3793.3,0.555]
[1717346465233,0.02718292,3793.6,3793.3,0.555]
[1717346465433,0.02718292,3793.6,3792.9,4.91894]
[1717346465607,0.02718292,3793.6,3793.0,0.555]
[1717346465810,0.02718292,3793.6,3792.9,5.410834]
[1717346466012,0.02718292,3793.6,3792.9,3.128334]
[1717346466206,0.02718292,3793.6,3792.9,2.63644]
[1717346468523,2.63609,3793.5,3792.8,0.555]
[1717346468915,0.02700286,3793.4,3792.7,2.2825]
[1717346469254,0.02700286,3793.4,3792.8,0.555]
[1717346469955,0.02700286,3793.4,3792.8,3.19157]
[1717346470161,0.02700286,3793.4,3792.9,0.547407]
[1717346472473,0.02700286,3793.4,3792.8,3.19157]
[1717346473870,0.02700286,3793.4,3792.8,2.63657]
[1717346474169,0.02700286,3793.4,3792.8,3.19157]
[1717346476130,2.4905,3793.3,3792.8,3.19157]
[1717346476332,2.4905,3793.3,3792.8,2.63657]
[1717346476594,2.4905,3793.3,3792.5,2.4011]
[1717346476595,0.02687876,3793.2,3792.5,2.63677]
[1717346476730,2.4905,3793.1,3792.4,0.555]
[1717346476939,2.4905,3793.1,3792.1,2.63699]
[1717346477186,0.0263706,3793.0,3792.1,2.63699]
[1717346477470,2.63651,3792.9,3792.1,2.63699]
[1717346477647,2.66273248,3792.9,3792.1,3.19199]
[1717346477845,2.4905,3792.8,3792.1,3.19199]
[1717346478060,2.4905,3792.8,3792.1,2.63699]
[1717346478579,0.02622248,3792.7,3792.1,3.19199]
[1717346482400,0.02622248,3792.7,3792.1,3.751299]
[1717346496066,0.02622248,3792.7,3792.1,3.196299]
[1717346496266,0.02622248,3792.7,3792.1,3.751299]
[1717346501598,0.02622248,3792.7,3792.1,1.114309]
[1717346502749,2.66292248,3792.7,3792.1,0.555]
[1717346504888,2.3353,3792.6,3791.8,2.63725]
[1717346505324,0.02506492,3792.5,3791.8,2.63725]
[1717346507414,0.02506492,3792.5,3791.8,3.19225]
[1717346512661,0.02506492,3792.5,3791.8,2.63725]
[1717346512936,0.02506492,3792.5,3791.9,0.555]
[1717346515449,0.02506492,3792.5,3791.9,1.107265]
[1717346517241,2.8436,3792.4,3791.5,2.63746]
[1717346517406,2.63692,3792.3,3791.5,2.63746]
[1717346517607,2.2886,3792.2,3791.5,2.63746]
[1717346518023,0.02473657,3792.1,3791.5,2.63746]
[1717346518440,2.2886,3792.0,3791.2,2.63767]
[1717346518646,2.2886,3792.0,3791.4,0.555]
[1717346518846,0.02473657,3791.9,3791.4,0.555]
[1717346525318,0.02473657,3791.9,3791.2,2.63767]
[1717346525555,2.2886,3791.8,3791.2,2.63767]
[1717346525734,2.3131884,3791.8,3791.2,2.63767]
[1717346526163,2.3131884,3791.8,3791.2,2.97174255]
[1717346527021,2.3131884,3791.8,3791.2,3.52674255]
[1717346530856,2.3131884,3791.8,3791.4,0.555]
[1717346531063,2.3131884,3791.8,3791.2,3.52674255]
[1717346533370,2.3131884,3791.8,3791.2,2.63767]
[1717346533750,2.63742,3791.6,3790.8,4.80868734]
[1717346534042,2.63761,3791.3,3790.8,2.17075734]
[1717346534242,0.02429599,3791.2,3790.8,2.17075734]
[1717346534446,2.4304,3791.2,3790.8,2.17075734]
[1717346534650,0.02409167,3791.1,3790.8,2.17075734]
[1717346546625,2.4304,3791.0,3790.8,2.17075734]
[1717346546905,5.45420721,3791.0,3790.8,2.17075734]
[1717346554408,3.02380721,3791.0,3790.8,2.17075734]
[1717346556548,5.36240721,3791.0,3790.8,2.17075734]
[1717346556698,3.02380721,3791.0,3790.8,2.17075734]
[1717346559749,6.81072893,3791.0,3790.8,2.17075734]
[1717346564062,6.25572893,3791.0,3790.8,2.17075734]
[1717346564258,3.87932893,3791.0,3790.8,2.17075734]
[1717346600137,3.02380721,3791.0,3790.8,2.17075734]
[1717346600345,3.02380721,3791.0,3790.8,4.46195734]
[1717346600710,3.02380721,3791.0,3790.8,2.17075734]
[1717346604117,3.57880721,3791.0,3790.8,2.17075734]
[1717346613021,3.02380721,3791.0,3790.8,2.17075734]
[1717346614379,3.57880721,3791.0,3790.8,2.17075734]
[1717346615049,4.14923141,3791.0,3790.8,2.17075734]
[1717346615508,5.05987555,3791.0,3790.8,2.17075734]
[1717346618763,0.02380721,3791.0,3790.8,4.58865734]
[1717346620065,3.02380721,3791.0,3790.8,4.58865734]
[1717346629378,3.02380721,3791.0,3790.8,2.17075734]
[1717346641289,6.43718694,3791.0,3790.8,2.17075734]
[1717346643683,4.14928694,3791.0,3790.8,2.17075734]
[1717346644101,4.12547973,3791.0,3790.8,2.17075734]
[1717346644307,5.2948667,3791.0,3790.8,2.17075734]
[1717346644615,7.5877667,3791.0,3790.8,2.17075734]
[1717346644921,8.13780796,3791.0,3790.8,2.17075734]
[1717346645493,16.67775496,3791.0,3790.8,2.17075734]
[1717346645713,16.11460596,3791.0,3790.8,2.17075734]
[1717346646283,13.29037096,3791.0,3790.8,2.17075734]
[1717346648712,12.73537096,3791.0,3790.8,2.17075734]
[1717346649029,8.13780796,3791.0,3790.8,2.17075734]
[1717346650006,5.84490796,3791.0,3790.8,2.17075734]
[1717346652434,8.22870796,3791.0,3790.8,2.17075734]
[1717346652799,10.43314396,3791.0,3790.8,2.17075734]
[1717346655444,11.00170796,3791.0,3790.8,2.17075734]
[1717346655665,23.41108696,3791.0,3790.8,2.17075734]
[1717346656160,23.41111465,3791.0,3790.8,2.17075734]
[1717346656725,20.85110865,3791.0,3790.8,2.17075734]
[1717346656926,20.05581965,3791.0,3790.8,2.17075734]
[1717346657128,15.06657465,3791.0,3790.8,2.17075734]
[1717346658159,15.06657022,3791.0,3790.8,2.17075734]
[1717346660463,12.29357022,3791.0,3790.8,2.17075734]
[1717346665686,5.28993122,3791.0,3790.8,2.17075734]
[1717346666042,5.84493122,3791.0,3790.8,2.17075734]
[1717346668489,5.27438697,3791.0,3790.8,2.17075734]
[1717346668687,5.84489257,3791.0,3790.8,2.17075734]
[1717346669487,5.29489257,3791.0,3790.8,2.17075734]
[1717346669690,3.5705056,3791.0,3790.9,2.53485549]
[1717346669892,4.12550499,3791.0,3790.9,2.53485549]
[1717346670184,3.57050499,3791.0,3790.9,2.53485549]
[1717346670393,4.12550499,3791.0,3790.9,2.53485549]
[1717346670969,4.12550499,3791.0,3790.9,0.14805549]
[1717346671190,4.80183649,3791.0,3790.9,0.14805549]
[1717346675319,0.57050499,3791.0,3790.9,2.53485549]
[1717346675502,2.63781,3791.1,3790.9,2.53485549]
[1717346677093,2.63781,3791.1,3790.9,0.14805549]
[1717346677289,3.0,3791.0,3790.9,0.14805549]
[1717346677517,3.555,3791.0,3790.9,0.14805549]
[1717346678527,3.0,3791.0,3790.9,0.14805549]
[1717346678730,3.555,3791.0,3790.9,0.14805549]
[1717346679796,4.174281,3791.0,3790.9,0.14805549]
[1717346685420,3.0,3791.0,3790.9,2.53485549]
[1717346694476,6.4148,3791.0,3790.9,0.14805549]
[1717346695123,6.98535789,3791.0,3790.9,0.14805549]
[1717346695317,10.02440129,3791.0,3790.9,0.14805549]
[1717346695553,23.10654342,3791.0,3790.9,0.14805549]
[1717346695820,22.53598553,3791.0,3790.9,0.14805549]
[1717346696425,23.10658196,3791.0,3790.9,0.14805549]
[1717346696819,23.10658196,3791.0,3790.9,5.49e-06]
[1717346697071,11.29066096,3791.0,3790.9,5.49e-06]
[1717346697273,34.19937556,3791.0,3790.9,5.49e-06]
[1717346697571,8.04878,3790.9,3790.8,2.83e-06]
[1717346697726,43.73985806,3790.9,3790.8,2.83e-06]
[1717346697929,38.18985806,3790.9,3790.8,2.83e-06]
[1717346699463,37.05283106,3790.9,3790.8,2.83e-06]
[1717346700165,35.93614406,3790.9,3790.8,2.83e-06]
[1717346700456,39.89617328,3790.9,3790.8,2.83e-06]
[1717346700669,42.20597328,3790.9,3790.8,2.83e-06]
[1717346701298,42.76097328,3790.9,3790.8,2.83e-06]
[1717346709305,21.63981328,3790.9,3790.8,2.83e-06]
[1717346709618,63.07168628,3790.9,3790.8,2.83e-06]
[1717346709996,63.32428328,3790.9,3790.8,2.83e-06]
[1717346710599,42.58370928,3790.9,3790.8,2.83e-06]
[1717346712820,48.94404306,3790.9,3790.8,2.83e-06]
[1717346713024,21.05273806,3790.9,3790.8,2.83e-06]
[1717346713521,19.92714163,3790.9,3790.8,2.83e-06]
[1717346713825,2.63789,3790.9,3790.8,2.83e-06]
[1717346715801,3.18789,3790.9,3790.8,2.83e-06]
[1717346715996,6.18789,3790.9,3790.8,2.83e-06]
[1717346717624,5.63789,3790.9,3790.8,2.83e-06]
[1717346717839,5.63789,3790.9,3790.8,2.34690283]
[1717346720214,3.0,3790.9,3790.8,2.34690283]
[1717346720540,3.0,3791.2,3790.9,2.3469]
[1717346721384,3.0,3791.2,3790.9,2.9019]
[1717346722033,3.0,3791.2,3791.1,0.555]
[1717346722232,3.0,3791.6,3791.2,2.3469]
[1717346722443,2.63738,3791.7,3791.2,2.3469]
[1717346722647,2.63738,3791.7,3791.3,0.29019]
[1717346722931,2.63738,3791.7,3791.2,2.3469]
[1717346723349,2.63738,3791.7,3791.2,1.3469]
[1717346724093,3.0,3791.6,3791.2,1.3469]
[1717346726016,2.63711,3792.1,3791.5,0.555]
[1717346726297,2.63711,3792.1,3792.0,2.3469]
[1717346727242,2.63681,3792.5,3792.0,2.63709]
[1717346727403,2.63681,3792.5,3792.2,0.555]
[1717346727603,2.63681,3792.5,3792.3,2.3469]
[1717346728936,3.0,3792.4,3792.3,2.3469]
[1717346730347,3.0,3792.8,3792.3,2.3469]
[1717346730643,0.55,3792.7,3792.3,2.3469]
[1717346732554,3.0,3792.8,3792.3,2.3469]
[1717346732855,3.0,3792.8,3792.3,2.845299]
[1717346733357,2.63627,3793.3,3792.5,2.4873]
[1717346734555,3.0,3793.2,3792.5,2.4873]
[1717346735061,0.02342187,3793.1,3792.5,2.4873]
[1717346737512,3.0,3793.6,3792.6,2.63669]
[1717346737725,0.55,3793.5,3792.7,2.4873]
[1717346738146,0.02367821,3793.4,3792.7,2.4873]
[1717346738745,3.0,3793.6,3792.7,2.4873]
[1717346738934,0.02367821,3793.3,3792.9,2.4873]
[1717346739135,3.0,3793.6,3792.9,2.4873]
[1717346739459,0.02367821,3793.2,3792.9,2.4873]
[1717346739674,2.636,3793.7,3793.0,2.4873]
[1717346741122,3.0,3793.6,3793.0,2.4873]
[1717346741443,3.02365018,3793.6,3793.1,0.70138619]
[1717346746945,3.02365018,3793.6,3793.0,2.4873]
[1717346752076,3.02365018,3793.6,3793.3,0.555]
[1717346752477,3.02365018,3793.6,3793.0,2.4873]
[1717346752657,3.02365018,3793.6,3793.2,0.555]
[1717346764598,3.02365018,3793.6,3793.4,0.555]
[1717346764818,0.02365018,3793.6,3793.4,0.555]
[1717346764971,3.0,3794.0,3793.4,0.555]
[1717346765172,3.0,3794.0,3793.6,0.555]
[1717346765375,4.290573,3794.0,3793.6,0.555]
[1717346767521,3.0,3794.0,3793.6,0.555]
[1717346767718,3.0,3794.0,3793.7,2.3905]
[1717346769005,2.63583,3793.9,3793.0,2.3201]
[1717346769191,3.0,3793.8,3793.3,0.555]
[1717346770779,0.02434831,3793.7,3793.3,0.555]
[1717346771121,3.0,3793.8,3793.3,0.555]
[1717346771282,0.02434831,3793.6,3793.3,0.555]
[1717346771684,3.0,3793.8,3793.3,0.555]
[1717346772183,0.02434831,3793.7,3793.3,0.555]
[1717346772392,3.0,3793.8,3793.3,0.555]
[1717346772593,0.02434831,3793.6,3793.3,0.555]
[1717346772788,3.0,3793.8,3793.3,0.555]
[1717346772989,0.02434831,3793.5,3793.3,0.555]
[1717346773219,2.63596,3793.7,3793.0,2.3201]
[1717346773401,0.02434831,3793.4,3793.0,2.3201]
[1717346773728,2.6361,3793.5,3793.0,2.8751]
[1717346773932,0.02434831,3793.3,3793.0,2.8751]
[1717346774093,2.6361,3793.5,3793.0,2.8751]
[1717346774296,0.02434831,3793.2,3793.0,2.8751]
[1717346774493,2.6361,3793.5,3793.0,2.8751]
[1717346774826,2.6361,3793.5,3793.2,0.555]
[1717346775027,0.02434831,3793.4,3793.2,0.555]
[1717346776934,3.0,3793.7,3793.2,0.555]
[1717346777227,3.0,3793.7,3793.4,0.555]
[1717346777445,0.02425222,3793.6,3793.5,2.3201]
[1717346777628,0.02425222,3793.6,3793.5,3.10711]
[1717346777785,7.27,3794.1,3793.6,2.63601]